bitfinex/quotes_ETHUSD_20250430
["timestamp","ask_amount","ask_price","bid_price","bid_amount"]
[1745985062342,0.33444045,1807.9,1807.6,2.92967778]
[1745985062731,0.33444045,1807.9,1807.8,1.69598025]
[1745985062938,0.33444045,1807.9,1807.8,7.7775656]
[1745985063325,0.33444045,1807.9,1807.8,2.24598025]
[1745985063550,0.33444045,1807.9,1807.8,0.55]
[1745985063754,0.33444045,1807.9,1807.8,1.23597563]
[1745985063957,0.33444045,1807.9,1807.8,0.68597563]
[1745985064132,0.33444045,1807.9,1807.7,0.55]
[1745985070981,0.33444045,1807.9,1807.6,2.92967778]
[1745985071281,0.8012,1807.7,1807.2,4.12619727]
[1745985071674,0.34239497,1807.6,1807.2,4.12619727]
[1745985072056,0.8012,1807.7,1807.2,4.12619727]
[1745985072352,0.65328869,1807.6,1807.2,5.34317693]
[1745985072547,0.65328869,1807.6,1807.2,4.92742862]
[1745985072875,0.31089372,1807.6,1807.2,10.46079279]
[1745985073081,0.31089372,1807.6,1807.2,4.92742862]
[1745985073486,0.31089372,1807.5,1807.2,4.92742862]
[1745985073874,0.31089372,1807.5,1807.2,1.21697966]
[1745985074074,0.34239497,1807.4,1807.2,1.21697966]
[1745985074277,0.34239497,1807.4,1807.2,6.750344]
[1745985074458,0.34239497,1807.4,1807.3,0.6750344]
[1745985074879,6.15,1807.6,1807.3,0.6750344]
[1745985075050,0.34239497,1807.4,1807.3,0.6750344]
[1745985075250,6.15,1807.6,1807.3,0.6750344]
[1745985075451,0.34239497,1807.5,1807.2,6.750344]
[1745985075675,0.34239497,1807.5,1807.2,7.17187857]
[1745985076684,0.34239497,1807.5,1807.2,1.21697966]
[1745985077262,0.34239497,1807.5,1807.2,6.80560052]
[1745985078656,0.34239497,1807.5,1807.4,0.8169]
[1745985079259,0.34239497,1807.5,1807.4,7.76483518]
[1745985079485,0.34239497,1807.5,1807.4,2.23202562]
[1745985079698,0.34239497,1807.5,1807.4,7.76483518]
[1745985079884,0.34239497,1807.5,1807.4,7.82015861]
[1745985080452,0.34239497,1807.5,1807.4,7.76483518]
[1745985082492,0.34239497,1807.5,1807.4,7.82015537]
[1745985082901,0.34239497,1807.5,1807.4,7.80195537]
[1745985083073,0.34239497,1807.5,1807.4,7.74663518]
[1745985083312,4.632,1808.0,1807.5,6.08230433]
[1745985083520,10.782,1808.0,1807.5,6.08230433]
[1745985083735,0.31048974,1807.9,1807.5,9.10617853]
[1745985083908,0.31048974,1807.9,1807.5,14.63846444]
[1745985084231,0.31048974,1807.9,1807.7,0.55]
[1745985084430,0.31048974,1807.9,1807.5,0.55]
[1745985084633,0.31048974,1807.8,1807.5,0.55]
[1745985084836,0.31048974,1807.8,1807.5,6.08246345]
[1745985085342,0.34145579,1807.7,1807.5,6.08246345]
[1745985085637,0.34145579,1807.7,1807.5,7.5799521]
[1745985085840,10.782,1808.0,1807.5,7.5799521]
[1745985086039,10.782,1808.0,1807.5,6.08246345]
[1745985086234,0.34145579,1807.9,1807.5,6.08246345]
[1745985086407,0.65203687,1807.9,1807.5,6.08246345]
[1745985087309,0.31058108,1807.8,1807.5,6.08246345]
[1745985087808,0.34145579,1807.7,1807.5,6.08246345]
[1745985088010,0.34145579,1807.7,1807.5,7.5799521]
[1745985088608,10.782,1808.0,1807.5,7.5799521]
[1745985088808,0.34145579,1807.9,1807.5,6.08246345]
[1745985090714,0.31063769,1807.8,1807.5,6.08246345]
[1745985091231,0.34145579,1807.7,1807.5,6.08246345]
[1745985091543,0.34145579,1807.7,1807.5,0.55]
[1745985091843,3.0,1807.9,1807.3,3.71044896]
[1745985092015,0.7507,1807.6,1807.3,3.71044896]
[1745985092414,0.34145579,1807.5,1807.3,3.71044896]
[1745985093925,0.3107239,1807.4,1807.3,3.71044896]
[1745985094238,0.65061417,1807.4,1807.3,3.71044896]
[1745985094614,0.65061417,1807.4,1807.2,0.55]
[1745985094812,0.65061417,1807.4,1807.3,8.55879594]
[1745985095139,6.15,1807.7,1807.4,6.08266163]
[1745985095447,0.3389508,1807.6,1807.4,6.13798172]
[1745985095747,6.15,1807.7,1807.4,6.13798172]
[1745985096044,0.3389508,1807.6,1807.4,6.08266163]
[1745985096211,6.15,1807.7,1807.5,0.60826616]
[1745985096412,0.33938924,1807.6,1807.5,7.7784837]
[1745985096608,5.4396,1808.0,1807.5,14.08868715]
[1745985096813,0.33976502,1807.9,1807.8,0.7777]
[1745985097512,0.65044866,1807.9,1807.8,0.7777]
[1745985097940,0.65044866,1807.9,1807.7,0.55]
[1745985098215,0.31068364,1807.8,1807.7,0.55]
[1745985099608,0.31068364,1807.8,1807.5,5.53230919]
[1745985099814,0.65157584,1807.7,1807.4,3.71044896]
[1745985100213,0.65157584,1807.7,1807.4,4.71808938]
[1745985100645,0.31068364,1807.6,1807.4,10.25078412]
[1745985101114,0.3408922,1807.5,1807.4,11.21184888]
[1745985101714,6.9729,1807.9,1807.5,6.08242383]
[1745985102535,0.31083871,1807.8,1807.5,6.08242383]
[1745985102822,0.31083871,1807.8,1807.6,0.60824238]
[1745985103056,0.31083871,1807.7,1807.6,0.60824238]
[1745985103824,0.31083871,1807.7,1807.6,6.69043976]
[1745985104025,0.31083871,1807.7,1807.6,7.46333976]
[1745985104324,0.31083871,1807.7,1807.6,9.15932001]
[1745985104636,0.31083871,1807.8,1807.7,6.08189135]
[1745985104835,0.31083871,1807.8,1807.7,7.55101249]
[1745985107068,0.31083871,1807.8,1807.7,2.01912114]
[1745985107452,0.31083871,1807.8,1807.7,7.55101249]
[1745985108347,0.31083871,1807.8,1807.7,8.34641249]
[1745985108665,0.31083871,1807.8,1807.7,8.40171952]
[1745985108963,0.31083871,1808.2,1808.1,1.3454]
[1745985109269,0.65310848,1808.2,1808.1,0.55]
[1745985112665,0.34226977,1808.2,1808.1,0.55]
[1745985112961,6.15,1808.4,1808.1,0.55]
[1745985113201,0.34339662,1808.2,1808.1,0.55]
[1745985113328,6.15,1808.4,1808.1,0.55]
[1745985113529,0.34339662,1808.2,1808.1,0.55]
[1745985114954,6.15,1808.4,1808.1,0.55]
[1745985115150,0.34421033,1808.2,1808.1,0.55]
[1745985115354,6.15,1808.4,1808.1,0.55]
[1745985115558,0.34421033,1808.2,1808.1,0.55]
[1745985115744,6.15,1808.4,1808.1,0.55]
[1745985115945,0.34421033,1808.2,1808.1,0.55]
[1745985116158,0.31023341,1808.3,1808.1,6.68871473]
[1745985116332,0.34421033,1808.2,1808.1,6.68871473]
[1745985117077,6.15,1808.4,1808.1,7.50311473]
[1745985117276,0.34421033,1808.3,1808.2,6.13563248]
[1745985117440,0.34421033,1808.3,1808.2,6.08033246]
[1745985117640,0.34421033,1808.3,1808.2,7.553265]
[1745985119142,0.34421033,1808.3,1808.2,7.60856209]
[1745985119338,0.34421033,1808.3,1808.2,7.553265]
[1745985119562,3.7583,1808.7,1808.4,0.55]
[1745985119950,0.31924978,1808.6,1808.4,0.55]
[1745985120270,3.7583,1808.7,1808.4,1.14344242]
[1745985120473,0.31924978,1808.6,1808.4,1.14344242]
[1745985120717,0.8082,1808.8,1808.4,6.67316811]
[1745985120863,0.31924978,1808.5,1808.4,6.67316811]
[1745985121064,0.30987165,1808.7,1808.4,6.67316811]
[1745985121361,0.31924978,1808.6,1808.4,1.14344242]
[1745985121536,0.31924978,1808.6,1808.4,0.59344242]
[1745985121737,0.30987165,1808.7,1808.3,0.8144]
[1745985121938,1.09614978,1808.5,1808.3,0.55]
[1745985122265,0.31924978,1808.4,1808.3,0.55]
[1745985122863,0.31924978,1808.4,1808.3,2.24598025]
[1745985123066,8.3809,1808.8,1808.3,14.12229195]
[1745985123281,0.31924978,1808.7,1808.4,5.52973258]
[1745985123501,0.31924978,1808.7,1808.3,10.15175855]
[1745985123502,0.31924978,1808.7,1808.3,2.92572245]
[1745985123776,0.31924978,1808.7,1808.3,2.10952245]
[1745985124002,0.31924978,1808.7,1808.3,0.55]
[1745985125971,0.7881,1808.6,1808.3,0.55]
[1745985126277,0.32012808,1808.5,1808.2,1.47293254]
[1745985126442,0.32012808,1808.5,1808.2,7.05854453]
[1745985126648,0.32012808,1808.5,1808.2,12.58869565]
[1745985126855,0.7881,1808.6,1808.3,1.25886956]
[1745985127076,0.32012808,1808.5,1808.3,1.25886956]
[1745985127381,0.7881,1808.7,1808.3,1.25886956]
[1745985127584,0.32006535,1808.4,1808.3,0.55]
[1745985127792,0.7881,1808.7,1808.3,6.08003689]
[1745985128292,0.32006535,1808.6,1808.3,6.08003689]
[1745985128579,0.7881,1808.7,1808.3,0.55]
[1745985128758,0.32006535,1808.5,1808.3,0.55]
[1745985128959,0.7881,1808.7,1808.3,1.15801271]
[1745985129181,0.32006535,1808.4,1808.3,1.15801271]
[1745985129700,0.7881,1808.7,1808.3,0.55]
[1745985129863,0.32113181,1808.6,1808.3,0.55]
[1745985130047,0.7881,1808.7,1808.3,0.55]
[1745985130396,0.7961,1808.5,1808.1,10.95067534]
[1745985130576,0.7961,1808.4,1807.9,3.71044896]
[1745985130754,6.9461,1808.4,1807.9,9.2416259]
[1745985130952,0.32113181,1808.3,1808.0,0.55]
[1745985132083,0.32113181,1808.3,1808.2,0.55]
[1745985135290,0.7521,1808.6,1808.2,0.55]
[1745985135450,0.32019078,1808.5,1808.1,0.55]
[1745985135786,10.753,1808.7,1808.0,6.34476367]
[1745985135787,0.7557,1808.4,1808.0,0.55]
[1745985136094,1.07595352,1808.4,1808.0,0.55]
[1745985136266,0.31043242,1808.3,1808.0,0.55]
[1745985136795,0.32025352,1808.2,1808.0,0.55]
[1745985137091,0.32025352,1808.2,1808.0,1.1581273]
[1745985137292,0.7557,1808.4,1808.0,1.1581273]
[1745985137492,0.32025352,1808.3,1808.0,0.55]
[1745985137988,0.31067426,1808.2,1808.0,0.55]
[1745985138594,0.32025352,1808.1,1808.0,0.55]
[1745985138986,0.7557,1808.4,1808.0,0.55]
[1745985139154,0.7557,1808.4,1808.1,0.05530497]
[1745985139352,0.32025352,1808.3,1808.2,0.55]
[1745985139799,3.7526,1808.6,1808.2,0.55]
[1745985139800,0.7526,1808.6,1808.2,0.55]
[1745985140010,0.32025352,1808.3,1808.2,0.55]
[1745985140173,0.7526,1808.6,1808.2,0.55]
[1745985140708,0.32019078,1808.5,1808.2,0.55]
[1745985140903,0.31076489,1808.4,1808.2,1.39674208]
[1745985141077,0.31076489,1808.4,1808.3,1.3232]
[1745985141285,0.63095567,1808.4,1808.3,0.55]
[1745985147023,0.63095567,1808.4,1808.1,1.46413183]
[1745985147228,0.7788,1808.3,1807.9,6.28812187]
[1745985147383,7.23956489,1808.3,1807.9,6.82876479]
[1745985147707,7.23956489,1808.3,1808.0,0.55]
[1745985147896,0.63126937,1808.2,1808.0,0.55]
[1745985148615,0.63126937,1808.2,1808.0,6.08095259]
[1745985148785,0.32050448,1808.2,1808.0,7.37191984]
[1745985152897,0.32050448,1808.2,1808.0,1.84096725]
[1745985153288,0.32050448,1808.2,1808.0,0.55]
[1745985155889,0.32050448,1808.2,1807.9,0.54064292]
[1745985156718,0.31095218,1808.1,1807.9,0.54064292]
[1745985157106,0.31095218,1808.1,1807.9,6.07180922]
[1745985157309,0.31095218,1808.1,1807.9,0.54064292]
[1745985157720,6.9288,1808.3,1807.9,0.54064292]
[1745985157898,0.31975165,1808.2,1807.9,0.55]
[1745985158098,0.31975165,1808.2,1807.9,6.08125345]
[1745985158919,0.31975165,1808.2,1807.9,0.55]
[1745985159420,0.31099578,1808.1,1807.9,0.55]
[1745985159908,6.9288,1808.3,1807.9,0.55]
[1745985160106,0.31975165,1808.2,1807.9,0.55]
[1745985160304,0.31975165,1808.2,1807.9,0.97918427]
[1745985160503,0.31975165,1808.2,1807.8,3.71044896]
[1745985162222,0.31095715,1808.1,1807.8,3.71044896]
[1745985162525,0.31881057,1808.0,1807.8,3.71044896]
[1745985163420,0.31881057,1808.0,1807.8,0.55]
[1745985163721,6.9288,1808.3,1807.8,2.0663491]
[1745985163899,0.31881057,1808.2,1807.8,0.55]
[1745985165399,0.31084185,1808.1,1807.8,0.55]
[1745985165920,0.31768115,1808.0,1807.8,0.55]
[1745985166282,6.9288,1808.3,1807.8,0.55]
[1745985166609,0.31768115,1808.2,1807.8,0.55]
[1745985166920,0.31768115,1808.2,1807.8,1.69530421]
[1745985167704,0.31076117,1808.1,1807.8,1.69530421]
[1745985168228,0.31768115,1808.0,1807.8,1.69530421]
[1745985169315,6.9288,1808.3,1807.8,1.69530421]
[1745985169515,0.31768115,1808.2,1807.8,1.69530421]
[1745985170531,0.31071211,1808.1,1807.8,1.69530421]
[1745985171027,0.31768115,1808.0,1807.8,1.69530421]
[1745985171732,0.31768115,1807.9,1807.8,1.69530421]
[1745985172035,6.9288,1808.3,1807.8,1.69530421]
[1745985172196,0.31768115,1807.9,1807.8,0.55]
[1745985172394,6.9288,1808.3,1807.8,0.55]
[1745985172707,0.310787,1808.2,1807.8,0.55]
[1745985172908,0.62846815,1808.1,1807.8,0.55]
[1745985173104,1.41506815,1808.1,1807.7,0.7683]
[1745985173807,0.310787,1808.0,1807.7,0.7683]
[1745985174006,0.310787,1808.0,1807.7,1.99399246]
[1745985174229,0.31667716,1807.9,1807.8,1.40941315]
[1745985174534,0.310787,1808.0,1807.9,6.08127938]
[1745985174731,0.7866,1808.6,1808.3,0.55]
[1745985175026,0.28954373,1808.5,1808.3,6.0799433]
[1745985175231,0.60026655,1808.5,1808.3,7.24096768]
[1745985175395,0.31072282,1808.5,1808.3,7.24096768]
[1745985175596,0.28954373,1808.4,1808.3,7.24096768]
[1745985176725,6.9273,1808.8,1808.3,7.24096768]
[1745985176908,0.60018241,1808.7,1808.3,7.24096768]
[1745985177129,0.60018241,1808.7,1808.6,6.35713856]
[1745985177354,0.60018241,1808.7,1808.6,6.90713856]
[1745985177655,0.60018241,1808.7,1808.6,1.378]
[1745985178079,0.28954373,1808.7,1808.6,1.378]
[1745985178420,0.28954373,1808.7,1808.6,6.90713856]
[1745985178617,0.28954373,1808.7,1808.6,8.32590162]
[1745985179016,0.28954373,1808.7,1808.6,2.79676306]
[1745985180058,0.28954373,1808.7,1808.6,8.32590162]
[1745985180224,6.15,1808.8,1808.6,2.79676306]
[1745985180627,0.28954373,1808.7,1808.6,8.32590162]
[1745985181028,6.15,1808.8,1808.6,8.32590162]
[1745985181559,0.28954373,1808.7,1808.6,2.79676306]
[1745985182063,6.15,1808.8,1808.6,2.79676306]
[1745985182365,0.28954373,1808.7,1808.6,2.79676306]
[1745985182861,6.15,1808.8,1808.6,2.79676306]
[1745985183031,6.15,1808.8,1808.5,0.7791]
[1745985183365,0.28954373,1808.7,1808.4,0.72409677]
[1745985183553,0.28954373,1808.7,1808.4,4.43454573]
[1745985183554,4.06624373,1808.7,1808.4,4.43454573]
[1745985183751,3.7767,1808.7,1808.4,4.43454573]
[1745985184272,3.7767,1808.7,1808.4,9.96425193]
[1745985184964,3.0,1808.7,1808.4,10.01954479]
[1745985185161,3.0,1808.7,1808.4,4.43454573]
[1745985185464,6.15,1808.8,1808.4,3.71044896]
[1745985185658,6.15,1808.8,1808.4,9.24019006]
[1745985185867,6.15,1808.8,1808.4,3.71044896]
[1745985186164,6.15,1808.8,1808.4,9.24017653]
[1745985186359,6.15,1808.8,1808.4,5.52972757]
[1745985186568,6.15,1808.8,1808.4,8.51974817]
[1745985186864,6.15,1808.8,1808.4,8.51974872]
[1745985187963,6.15,1808.8,1808.4,8.46445676]
[1745985188368,6.15,1808.8,1808.4,7.22557894]
[1745985190465,6.15,1808.8,1808.3,6.30899985]
[1745985190761,0.29740418,1808.7,1808.3,8.06039404]
[1745985190964,0.29740418,1808.7,1808.4,5.52974459]
[1745985191171,6.15,1808.8,1808.4,5.52974459]
[1745985191667,0.29740418,1808.7,1808.4,5.52974459]
[1745985191836,0.29740418,1808.7,1808.4,6.88311817]
[1745985192033,6.15,1808.8,1808.4,6.88311817]
[1745985192369,0.29740418,1808.7,1808.4,5.52963367]
[1745985192768,6.15,1808.8,1808.4,5.52963367]
[1745985193272,0.29740418,1808.7,1808.4,5.52963367]
[1745985193438,6.44740418,1808.7,1808.4,5.52963367]
[1745985193639,6.44740418,1808.7,1808.3,8.00510297]
[1745985193640,6.44740418,1808.7,1808.3,8.00490797]
[1745985193841,6.44740418,1808.7,1808.3,9.31989877]
[1745985194158,6.44740418,1808.7,1808.3,9.37519289]
[1745985194968,6.44740418,1808.7,1808.4,5.52973461]
[1745985196170,6.44740418,1808.7,1808.4,5.52960847]
[1745985196778,6.44740418,1808.7,1808.6,6.07913856]
[1745985196954,6.44740418,1808.7,1808.6,7.66885044]
[1745985198061,6.44740418,1808.7,1808.6,2.13971188]
[1745985199356,0.29740418,1808.7,1808.6,2.13971188]
[1745985199671,6.15,1809.0,1808.6,2.13971188]
[1745985199875,0.29752989,1808.7,1808.6,2.13971188]
[1745985200044,6.15,1809.0,1808.6,2.13971188]
[1745985200244,0.29752989,1808.7,1808.6,1.3622]
[1745985200444,6.15,1809.0,1808.6,6.89133856]
[1745985200645,0.29752989,1808.7,1808.6,6.89133856]
[1745985200845,6.15,1809.0,1808.6,6.89133856]
[1745985201041,0.82,1809.1,1808.6,6.89133856]
[1745985201042,0.29752989,1808.7,1808.6,6.89133856]
[1745985201272,6.97,1809.1,1808.7,6.07869577]
[1745985201471,0.31020302,1809.0,1808.7,6.07869577]
[1745985201640,0.31020302,1809.0,1808.7,7.77467602]
[1745985201641,0.60968141,1809.0,1808.7,7.77467602]
[1745985201850,0.29947839,1809.0,1808.7,7.77467602]
[1745985202468,0.29947839,1809.0,1808.7,7.77459624]
[1745985202693,0.29947839,1809.0,1808.9,0.55]
[1745985205179,0.29947839,1809.0,1808.9,6.07822157]
[1745985205586,0.29947839,1809.0,1808.9,6.13349961]
[1745985205883,0.29947839,1809.0,1808.9,7.82947986]
[1745985206081,0.29947839,1809.0,1808.9,8.62927986]
[1745985206289,6.9285,1809.5,1809.1,6.30787438]
[1745985206887,0.31047042,1809.4,1809.1,6.30787438]
[1745985207784,6.9285,1809.5,1809.1,6.30787438]
[1745985207962,6.9285,1809.5,1809.1,0.7803]
[1745985208366,6.9285,1809.5,1809.0,0.55]
[1745985208567,6.9285,1809.5,1809.0,1.5568837]
[1745985208962,6.9285,1809.5,1809.0,7.08469374]
[1745985209193,0.7762,1809.4,1808.9,0.8013]
[1745985209597,0.31015486,1809.3,1808.9,0.8013]
[1745985210387,0.31015486,1809.2,1808.8,6.87968436]
[1745985210560,1.08635486,1809.2,1808.8,1.3513]
[1745985210757,1.08635486,1809.2,1808.8,6.87974787]
[1745985211060,1.08635486,1809.2,1808.8,8.33241507]
[1745985211289,0.7762,1809.2,1808.6,11.53467113]
[1745985211463,0.8041,1809.1,1808.6,5.3648]
[1745985211658,0.31014795,1809.0,1808.6,10.89379607]
[1745985211863,0.31014795,1809.0,1808.7,0.55]
[1745985212080,0.31014795,1809.0,1808.7,6.13410088]
[1745985212393,0.31014795,1809.0,1808.7,13.53512616]
[1745985212553,0.31014795,1809.0,1808.9,1.3208]
[1745985212759,0.31014795,1809.0,1808.9,6.90429742]
[1745985213058,6.9541,1809.5,1809.2,0.55]
[1745985213489,0.30306018,1809.4,1809.2,0.55]
[1745985213697,0.30306018,1809.4,1809.2,1.23482817]
[1745985214201,0.30306018,1809.4,1809.2,6.76213257]
[1745985215115,0.30306018,1809.4,1809.1,0.7708]
[1745985215702,0.30306018,1809.4,1809.2,0.55]
[1745985216114,0.30306018,1809.4,1809.2,6.07719145]
[1745985216795,0.30306018,1809.4,1809.2,0.55]
[1745985219012,0.30306018,1809.4,1809.1,0.55]
[1745985220716,0.30306018,1809.4,1809.1,7.39430328]
[1745985224318,0.30306018,1809.4,1809.3,6.07699939]
[1745985224518,0.30306018,1809.4,1809.3,0.55]
[1745985225022,0.30306018,1809.4,1809.3,6.07699939]
[1745985227490,6.9036,1809.8,1809.3,6.07699939]
[1745985227991,0.30670382,1809.7,1809.3,6.07699939]
[1745985230229,0.31014082,1809.6,1809.3,6.07699939]
[1745985230622,0.30795991,1809.5,1809.3,6.07699939]
[1745985231223,0.30795991,1809.5,1809.3,0.55]
[1745985231623,0.8318,1809.7,1809.2,0.775]
[1745985231792,0.30795991,1809.4,1809.2,6.35755954]
[1745985231990,0.8318,1809.7,1809.2,6.35755954]
[1745985232291,0.30795991,1809.6,1809.2,6.35755954]
[1745985232924,0.30795991,1809.6,1809.3,0.55]
[1745985233223,0.30795991,1809.6,1809.3,6.07689389]
[1745985233520,0.30795991,1809.6,1809.3,7.31479736]
[1745985235921,0.30795991,1809.6,1809.3,1.78790347]
[1745985236222,0.30795991,1809.6,1809.3,0.55]
[1745985237726,0.30795991,1809.6,1809.4,0.7542]
[1745985237933,0.30795991,1809.6,1809.5,6.0763885]
[1745985238096,6.15,1809.8,1809.5,6.0763885]
[1745985238630,0.30915319,1809.7,1809.5,6.0763885]
[1745985238813,0.30915319,1809.7,1809.5,7.48170225]
[1745985239329,0.30915319,1809.7,1809.5,1.95531375]
[1745985240836,0.30915319,1809.7,1809.5,0.55]
[1745985242011,0.30915319,1809.7,1809.5,6.07636706]
[1745985243339,0.30915319,1809.7,1809.5,0.55]
[1745985243845,0.30915319,1809.7,1809.6,2.24598025]
[1745985244144,0.05,1809.9,1809.8,6.87077242]
[1745985244312,0.05,1809.9,1809.8,16.05665002]
[1745985244636,0.05,1809.9,1809.8,17.69739645]
[1745985248046,0.05,1809.9,1809.8,13.0014162]
[1745985248905,0.05,1809.9,1809.8,14.69739645]
[1745985250202,0.05,1809.9,1809.8,17.69739645]
[1745985252870,0.05,1809.9,1809.8,15.4514162]
[1745985253028,0.05,1809.9,1809.8,16.0014162]
[1745985255882,0.05,1809.9,1809.8,13.0014162]
[1745985256357,0.05,1809.9,1809.8,7.6151162]
[1745985257768,0.05,1809.9,1809.8,1.53964378]
[1745985258083,0.34355889,1809.9,1809.8,0.55]
[1745985258424,0.34355889,1809.9,1809.8,6.07547242]
[1745985259164,0.34355889,1809.9,1809.8,8.65369789]
[1745985259391,0.34355889,1809.9,1809.8,8.59845267]
[1745985259543,0.34355889,1809.9,1809.8,11.65368945]
[1745985259733,0.34355889,1809.9,1809.8,13.31639827]
[1745985259938,0.05,1809.9,1809.8,13.31639827]
[1745985267259,0.815,1810.4,1810.3,0.55]
[1745985267686,1.1091859,1810.4,1810.3,0.55]
[1745985268001,1.1091859,1810.4,1810.1,6.07440158]
[1745985268182,1.1091859,1810.4,1810.2,0.60744016]
[1745985268493,1.1091859,1810.4,1810.2,6.13164851]
[1745985268705,1.1091859,1810.4,1810.2,0.60744016]
[1745985269486,1.1091859,1810.4,1810.3,0.55]
[1745985270359,1.1091859,1810.4,1810.1,6.48557436]
[1745985270695,1.1091859,1810.4,1810.3,0.55]
[1745985271395,0.2941859,1810.4,1810.3,6.0739463]
[1745985271804,0.2941859,1810.4,1810.3,6.12917908]
[1745985272308,0.2941859,1810.4,1810.3,6.0739463]
[1745985272614,0.2941859,1810.4,1810.3,6.12917089]
[1745985272814,0.2941859,1810.4,1810.3,8.28415204]
[1745985273002,0.4057469,1810.5,1810.4,6.07364118]
[1745985273213,0.70250511,1810.5,1810.4,7.76962143]
[1745985274624,0.70250511,1810.5,1810.4,11.52482143]
[1745985274820,0.05,1810.9,1810.8,6.07242102]
[1745985275121,0.30078036,1810.9,1810.8,7.23192446]
[1745985275321,0.05,1810.9,1810.8,7.23192446]
[1745985275617,0.05,1810.9,1810.8,7.64181921]
[1745985275921,0.05,1810.9,1810.8,11.52852672]
[1745985276085,0.05,1810.9,1810.8,11.47331921]
[1745985277246,0.002824,1811.1,1811.0,9.07181115]
[1745985277394,0.002824,1811.1,1811.0,11.6270847]
[1745985277600,0.002824,1811.1,1811.0,11.5718914]
[1745985283269,0.002824,1811.1,1811.0,10.7677914]
[1745985283471,0.002824,1811.1,1811.0,10.82298971]
[1745985283770,0.002824,1811.1,1811.0,12.57222242]
[1745985283945,0.002824,1811.1,1811.0,12.51702411]
[1745985284152,0.002824,1811.1,1811.0,7.82104386]
[1745985284878,0.002824,1811.1,1811.0,9.51702411]
[1745985285083,0.002824,1811.1,1811.0,10.40492293]
[1745985285751,0.002824,1811.1,1811.0,13.40492293]
[1745985286058,0.002824,1811.1,1811.0,13.34972411]
[1745985290561,0.002824,1811.1,1811.0,12.51702411]
[1745985290933,0.002824,1811.1,1811.0,10.82104386]
[1745985292285,0.002824,1811.1,1811.0,10.8762426]
[1745985293064,0.7756,1811.6,1811.5,6.07028705]
[1745985293273,1.01406051,1811.6,1811.5,6.07028705]
[1745985293597,0.7756,1811.8,1811.6,6.06984912]
[1745985293870,0.23846051,1811.7,1811.6,6.47693062]
[1745985295249,0.05,1811.9,1811.8,6.06937299]
[1745985295440,0.28846051,1811.9,1811.8,6.06937299]
[1745985295976,0.28846051,1811.9,1811.8,0.55]
[1745985296143,1.06626051,1811.9,1811.8,0.55]
[1745985297651,1.06626051,1811.9,1811.8,6.06937299]
[1745985297854,1.06626051,1811.9,1811.8,7.2337768]
[1745985300474,5.0877469,1812.3,1811.8,7.2337768]
[1745985300475,0.4057469,1812.3,1812.2,6.06815472]
[1745985300635,0.4057469,1812.3,1812.2,7.81930071]
[1745985300983,0.4057469,1812.3,1812.2,7.76413497]
[1745985301159,0.4057469,1812.3,1812.2,9.1750323]
[1745985301362,1e-08,1812.3,1812.2,12.1750323]
[1745985301687,0.05,1812.9,1812.8,6.06632833]
[1745985302241,0.05,1812.9,1812.8,0.55]
[1745985302572,0.8101,1812.9,1812.8,0.40689064]
[1745985302758,0.8101,1812.9,1812.8,6.06632833]
[1745985303080,0.8101,1812.9,1812.8,0.55]
[1745985303268,0.05,1812.9,1812.8,0.55]
[1745985303740,0.8101,1812.9,1812.4,4.656]
[1745985303939,0.8101,1812.9,1812.7,6.06652007]
[1745985304140,0.05,1812.9,1812.8,1.3716]
[1745985304442,0.05,1812.9,1812.8,10.01487773]
[1745985304747,0.05,1812.9,1812.8,6.88792833]
[1745985304962,0.05,1812.9,1812.8,0.55]
[1745985305658,0.05,1812.9,1812.8,6.06632833]
[1745985306046,0.05,1812.9,1812.8,0.55]
[1745985306284,0.05,1812.9,1812.8,6.06632833]
[1745985306446,0.05,1812.9,1812.8,6.12148434]
[1745985306646,0.05,1812.9,1812.8,7.27975934]
[1745985307370,0.05,1812.9,1812.8,7.22460333]
[1745985308063,0.05,1812.9,1812.8,0.55]
[1745985308993,0.05,1812.9,1812.8,6.06632833]
[1745985309494,0.05,1812.9,1812.8,6.12148261]
[1745985309701,0.05,1812.9,1812.8,6.06632833]
[1745985311051,0.05,1812.9,1812.8,0.55]
[1745985311283,1.08525973,1812.9,1812.6,5.92411795]
[1745985311487,1.08525973,1812.9,1812.6,6.10918323]
[1745985311680,1.08525973,1812.9,1812.6,0.5924118]
[1745985311883,1.08525973,1812.9,1812.8,0.55]
[1745985312585,1.08525973,1812.9,1812.6,6.4722906]
[1745985313085,1.08525973,1812.9,1812.7,0.05515772]
[1745985313263,1.08525973,1812.9,1812.7,5.57157134]
[1745985313463,1.08525973,1812.9,1812.7,5.51641362]
[1745985313875,0.26145973,1812.9,1812.8,6.06632833]
[1745985314086,0.05,1812.9,1812.8,6.06632833]
[1745985314251,0.26744012,1812.9,1812.8,6.06632833]
[1745985314686,0.26744012,1812.9,1812.8,0.55]
[1745985315151,0.26744012,1812.9,1812.8,6.06632833]
[1745985315346,0.26744012,1812.9,1812.8,7.34449018]
[1745985316067,0.05,1812.9,1812.8,7.34449018]
[1745985316454,0.05,1812.9,1812.8,7.39964271]
[1745985316790,0.05,1812.9,1812.8,8.16359018]
[1745985317187,0.05,1812.9,1812.8,8.21873879]
[1745985317770,0.05,1812.9,1812.8,8.16359018]
[1745985318658,0.05,1812.9,1812.8,11.21873287]
[1745985318862,0.05,1812.9,1812.8,11.16359018]
[1745985319087,0.05,1812.9,1812.8,15.81759018]
[1745985320681,0.05,1812.9,1812.8,14.44849018]
[1745985321276,0.05,1812.9,1812.8,14.99849018]
[1745985322087,0.05,1812.9,1812.8,14.44849018]
[1745985322310,0.05,1812.9,1812.8,11.44849018]
[1745985322509,0.05,1812.9,1812.8,11.99849018]
[1745985322715,0.05,1812.9,1812.8,11.44849018]
[1745985323516,0.05,1812.9,1812.8,11.99849018]
[1745985325022,0.8647,1812.9,1812.7,5.51651043]
[1745985325370,0.22012291,1812.8,1812.6,5.92248821]
[1745985325796,0.7702,1812.7,1812.4,0.4656]
[1745985325975,0.7702,1812.7,1812.4,5.98304525]
[1745985326177,0.22006001,1812.6,1812.4,5.98304525]
[1745985326420,0.22006001,1812.6,1812.5,5.57240606]
[1745985326717,0.22006001,1812.6,1812.5,6.6727865]
[1745985326886,0.7702,1812.7,1812.5,6.6727865]
[1745985327071,0.7702,1812.7,1812.6,0.55]